fUST/lending_fUST_20240715
["ID","MTS","AMOUNT","RATE_DAILY","PERIOD"]
[332121569,1720973443133,-500.0,0.00024657,2]
[332121571,1720973443141,-500.0,0.00024657,2]
[332121573,1720973443151,-500.0,0.00024657,2]
[332121575,1720973443160,-153.1346023,0.000248,2]
[332121576,1720973443169,-150.112233,0.000248,5]
[332121577,1720973443178,-1407.0,0.00024898,2]
[332121578,1720973443187,-500.0,0.0002492,2]
[332121579,1720973443197,-563.39,0.0002492,2]
[332121580,1720973443206,-500.0,0.0002492,2]
[332121581,1720973443216,-18800.1895341,0.00024921,3]
[332121582,1720973443238,-500.0,0.0002493,2]
[332121583,1720973443260,-500.0,0.0002493,2]
[332121584,1720973443286,-500.0,0.0002493,2]
[332121585,1720973443309,-500.0,0.0002493,2]
[332121586,1720973443333,-563.39,0.0002493,2]
[332121587,1720973443358,-563.39,0.0002493,2]
[332121588,1720973443392,-500.0,0.0002493,2]
[332121589,1720973443442,-500.0,0.0002493,2]
[332121590,1720973443460,-500.0,0.00024931,2]
[332121591,1720973443547,-500.0,0.00024931,2]
[332121592,1720973443557,-500.0,0.00024931,2]
[332121593,1720973443569,-500.0,0.00024931,2]
[332121594,1720973443579,-500.0,0.00024931,2]
[332121595,1720973443590,-500.0,0.00024931,2]
[332121596,1720973443600,-500.0,0.00024931,2]
[332121597,1720973443611,-500.0,0.00024931,2]
[332121598,1720973443620,-500.0,0.00024931,2]
[332121599,1720973443630,-1500.0,0.00024931,2]
[332121600,1720973443640,-511.93,0.00024931,2]
[332121601,1720973443649,-500.0,0.00024931,2]
[332121602,1720973443659,-500.0,0.00024931,2]
[332121603,1720973443668,-500.0,0.00024931,2]
[332121604,1720973443678,-500.0,0.00024931,2]
[332121605,1720973443688,-500.0,0.00024931,2]
[332121606,1720973443698,-500.0,0.00024931,2]
[332121607,1720973443709,-500.0,0.00024931,2]
[332121608,1720973443719,-500.0,0.00024931,2]
[332121609,1720973443734,-500.0,0.00024931,2]
[332121610,1720973443745,-500.0,0.00024931,2]
[332121612,1720973443755,-721.61,0.00024931,2]
[332121614,1720973443764,-633.97674964,0.00024931,2]
[332121616,1720973443775,-500.0,0.00024931,2]
[332121617,1720973443785,-719.78,0.00024931,2]
[332121618,1720973443794,-323.23972023,0.00024931,2]
[332121619,1720973443804,-500.0,0.00024931,2]
[332121620,1720973443814,-500.0,0.00024931,2]
[332121621,1720973443824,-220.43453804,0.00024931,2]
[332121622,1720973443833,-500.0,0.00024931,2]
[332121623,1720973443844,-343.99824475,0.00024931,2]
[332121624,1720973443853,-500.0,0.00024931,2]
[332121625,1720973443863,-500.0,0.00024931,2]
[332121626,1720973443874,-500.0,0.00024931,2]
[332121627,1720973443884,-500.0,0.00024931,2]
[332121628,1720973443894,-555.04902352,0.00024931,2]
[332121629,1720973443904,-500.0,0.00024931,2]
[332121630,1720973443913,-500.0,0.00024931,2]
[332121631,1720973443923,-500.0,0.00024931,2]
[332121632,1720973443932,-500.0,0.00024931,2]
[332121633,1720973443942,-500.0,0.00024931,2]
[332121634,1720973443953,-500.0,0.00024931,2]
[332121635,1720973443964,-500.0,0.00024931,2]
[332121636,1720973443975,-500.0,0.00024931,2]
[332121637,1720973443986,-500.0,0.00024931,2]
[332121638,1720973443995,-500.0,0.00024931,2]
[332121639,1720973444006,-500.0,0.00024931,2]
[332121640,1720973444017,-500.0,0.00024931,2]
[332121641,1720973444027,-500.0,0.00024931,2]
[332121642,1720973444037,-500.0,0.00024931,2]
[332121643,1720973444048,-500.0,0.00024931,2]
[332121644,1720973444057,-500.0,0.00024931,2]
[332121645,1720973444066,-500.0,0.00024931,2]
[332121646,1720973444075,-500.0,0.00024931,2]
[332121647,1720973444087,-500.0,0.00024931,2]
[332121648,1720973444097,-500.0,0.00024931,2]
[332121649,1720973444107,-500.0,0.00024931,2]
[332121650,1720973444117,-447.71325234,0.00024931,2]
[332121651,1720973444127,-500.0,0.00024931,2]
[332121652,1720973444138,-500.0,0.00024931,2]
[332121653,1720973444149,-500.0,0.00024931,2]
[332121654,1720973444158,-500.0,0.00024931,2]
[332121655,1720973444166,-500.0,0.00024931,2]
[332121656,1720973444176,-500.0,0.00024931,2]
[332121657,1720973444185,-500.0,0.00024931,2]
[332121658,1720973444194,-500.0,0.00024931,2]
[332121659,1720973444203,-500.0,0.00024931,2]
[332121660,1720973444212,-500.0,0.00024931,2]
[332121661,1720973444221,-500.0,0.00024931,2]
[332121662,1720973444232,-500.0,0.00024931,2]
[332121663,1720973444243,-507.50561512,0.00024931,2]
[332121664,1720973444253,-500.0,0.00024931,2]
[332121665,1720973444263,-500.0,0.00024931,2]
[332121666,1720973444273,-375.89084673,0.00024931,2]
[332121667,1720973444283,-500.0,0.00024931,2]
[332121668,1720973444294,-298.60681129,0.00024931,2]
[332121669,1720973444303,-500.0,0.00024931,2]
[332121670,1720973444313,-500.0,0.00024931,2]
[332121671,1720973444323,-500.0,0.00024931,2]
[332121672,1720973444332,-500.0,0.00024931,2]
[332121673,1720973444343,-500.0,0.00024931,2]
[332121674,1720973444353,-500.0,0.00024931,2]
[332121675,1720973444362,-500.0,0.00024931,2]
[332121676,1720973444373,-500.0,0.00024931,2]
[332121677,1720973444382,-500.0,0.00024931,2]
[332121678,1720973444392,-500.0,0.00024931,2]
[332121679,1720973444401,-500.0,0.00024931,2]
[332121680,1720973444416,-500.0,0.00024931,2]
[332121681,1720973444431,-802.97,0.00024931,2]
[332121682,1720973444445,-500.0,0.00024931,2]
[332121683,1720973444458,-207.0,0.00024931,2]
[332121684,1720973444469,-500.0,0.00024931,2]
[332121685,1720973444484,-190.1290173,0.00024931,2]
[332121686,1720973444496,-4002.68,0.00024931,2]
[332121687,1720973444510,-195.77,0.00024931,2]
[332121688,1720973444524,-500.0,0.00024931,2]
[332121689,1720973444538,-500.0,0.00024931,2]
[332121690,1720973444552,-500.0,0.00024931,2]
[332121691,1720973444567,-500.0,0.00024931,2]
[332121692,1720973444580,-500.0,0.00024931,2]
[332121693,1720973444593,-321.12,0.00024931,2]
[332121694,1720973444604,-500.0,0.00024931,2]
[332121695,1720973444618,-195.1,0.00024931,2]
[332121696,1720973444632,-500.0,0.00024931,2]
[332121697,1720973444645,-500.0,0.00024931,2]
[332121698,1720973444656,-500.0,0.00024931,2]
[332121699,1720973444668,-500.0,0.00024931,2]
[332121700,1720973444680,-500.0,0.00024931,2]
[332121701,1720973444693,-500.0,0.00024931,2]
[332121702,1720973444706,-500.0,0.00024931,2]
[332121703,1720973444719,-500.0,0.00024931,2]
[332121704,1720973444735,-500.0,0.00024931,2]
[332121705,1720973444750,-500.0,0.00024931,2]
[332121706,1720973444763,-500.0,0.00024931,2]
[332121707,1720973444776,-500.0,0.00024931,2]
[332121708,1720973444787,-500.0,0.00024931,2]
[332121709,1720973444798,-1017.97,0.00024931,2]
[332121710,1720973444812,-500.0,0.00024931,2]
[332121711,1720973444825,-500.0,0.00024931,2]
[332121712,1720973444837,-500.0,0.00024931,2]
[332121713,1720973444851,-500.0,0.00024931,2]
[332121714,1720973444861,-274.59476383,0.00024931,2]
[332121715,1720973444874,-500.0,0.00024931,2]
[332121716,1720973444887,-500.0,0.00024931,2]
[332121717,1720973444902,-500.0,0.00024931,2]
[332121718,1720973444913,-500.0,0.00024931,2]
[332121719,1720973444924,-500.0,0.00024931,2]
[332121720,1720973444934,-500.0,0.00024931,2]
[332121721,1720973444945,-500.0,0.00024931,2]
[332121722,1720973444956,-522.29616203,0.00024931,2]
[332121723,1720973444967,-500.0,0.00024931,2]
[332121724,1720973444979,-500.0,0.00024931,2]
[332121725,1720973444991,-500.0,0.00024931,2]
[332121726,1720973445002,-522.03,0.00024931,2]
[332121727,1720973445014,-570.92246406,0.00024931,2]
[332121728,1720973445025,-500.0,0.00024931,2]
[332121729,1720973445036,-500.0,0.00024931,2]
[332121730,1720973445048,-500.0,0.00024931,2]
[332121731,1720973445059,-500.0,0.00024931,2]
[332121732,1720973445070,-505.09029072,0.00024931,2]
[332121733,1720973445081,-500.0,0.00024931,2]
[332121734,1720973445092,-500.0,0.00024931,2]
[332121735,1720973445103,-500.0,0.00024931,2]
[332121736,1720973445115,-500.0,0.00024931,2]
[332121737,1720973445127,-500.0,0.00024931,2]
[332121738,1720973445141,-500.0,0.00024931,2]
[332121739,1720973445153,-500.0,0.00024931,2]
[332121740,1720973445166,-500.0,0.00024931,2]
[332121741,1720973445177,-500.0,0.00024931,2]
[332121742,1720973445188,-500.0,0.00024931,2]
[332121743,1720973445200,-500.0,0.00024931,2]
[332121744,1720973445211,-254.80344226,0.00024931,2]
[332121745,1720973445223,-502.29,0.00024931,2]
[332121746,1720973445234,-500.0,0.00024931,2]
[332121747,1720973445246,-500.0,0.00024931,2]
[332121748,1720973445257,-500.0,0.00024931,2]
[332121749,1720973445269,-500.0,0.00024931,2]
[332121750,1720973445280,-500.0,0.00024931,2]
[332121751,1720973445293,-8399.38,0.00024931,2]
[332121752,1720973445305,-500.0,0.00024931,2]
[332121753,1720973445316,-500.0,0.00024931,2]
[332121754,1720973445327,-500.0,0.00024931,2]
[332121755,1720973445339,-500.0,0.00024931,2]
[332121756,1720973445350,-500.0,0.00024931,2]
[332121757,1720973445362,-500.0,0.00024931,2]
[332121758,1720973445375,-500.0,0.00024931,2]
[332121759,1720973445389,-500.0,0.00024931,2]
[332121760,1720973445401,-500.0,0.00024931,2]
[332121761,1720973445413,-500.0,0.00024931,2]
[332121762,1720973445424,-500.0,0.00024931,2]
[332121763,1720973445536,-500.0,0.00024931,2]
[332121764,1720973445549,-500.0,0.00024931,2]
[332121765,1720973445559,-500.0,0.00024931,2]
[332121766,1720973445569,-500.0,0.00024931,2]
[332121767,1720973445579,-500.0,0.00024931,2]
[332121768,1720973445588,-500.0,0.00024931,2]
[332121769,1720973445598,-209.1071623,0.00024931,2]
[332121770,1720973445607,-500.0,0.00024931,2]
[332121771,1720973445616,-500.0,0.00024931,4]
[332121772,1720973445626,-500.0,0.00024931,2]
[332121773,1720973445635,-500.0,0.00024931,2]
[332121774,1720973445645,-500.0,0.00024931,2]
[332121775,1720973445656,-500.0,0.00024931,2]
[332121776,1720973445666,-1444.19,0.00024931,2]
[332121777,1720973445675,-364.16210115,0.00024931,2]
[332121778,1720973445685,-500.0,0.00024931,2]
[332121779,1720973445695,-500.0,0.00024931,2]
[332121780,1720973445705,-500.0,0.00024931,2]
[332121781,1720973445714,-500.0,0.00024931,2]
[332121782,1720973445725,-500.0,0.00024931,2]
[332121783,1720973445736,-305.42164865,0.00024931,2]
[332121784,1720973445746,-500.0,0.00024931,2]
[332121785,1720973445756,-524.57865613,0.00024931,2]
[332121786,1720973445767,-500.0,0.00024931,2]
[332121787,1720973445776,-500.0,0.00024931,2]
[332121788,1720973445785,-422.42721991,0.00024931,2]
[332121789,1720973445795,-500.0,0.00024931,2]
[332121790,1720973445808,-500.0,0.00024931,2]
[332121791,1720973445820,-500.0,0.00024931,2]
[332121792,1720973445831,-164.5,0.0002499,2]
[332121793,1720973445840,-563.39,0.00024999,2]
[332121794,1720973445849,-500.0,0.00024999,2]
[332121795,1720973445858,-150.112233,0.00025,2]
[332121796,1720973445869,-8070.969966,0.00025,2]
[332121797,1720973445879,-151.0,0.00025,7]
[332121798,1720973445889,-151.0,0.00025,7]
[332121799,1720973445899,-227.232339,0.00025,7]
[332121800,1720973445918,-227.232339,0.00025,7]
[332121802,1720973445946,-245.38974604,0.00025047,2]
[332121804,1720973445972,-260.62534725,0.00025094,2]
[332121805,1720973445997,-177.26682605,0.00025108,2]
[332121806,1720973446028,-11587.3483272,0.00025195,3]
[332121827,1720973448183,-500.0,0.00024657,2]
[332121828,1720973448193,-319.47769847,0.00024657,2]
[332121829,1720973448202,-500.0,0.00024657,2]
[332121830,1720973448212,-500.0,0.00024931,2]
[332121831,1720973448221,-7212.8412069,0.00025195,3]
[332121832,1720973448232,-151.0,0.00025195,7]
[332121833,1720973448241,-151.0,0.00025195,7]
[332121834,1720973448251,-151.0,0.00025195,7]
[332121835,1720973448260,-151.0,0.00025195,7]
[332121836,1720973448270,-151.0,0.00025195,7]
[332121837,1720973448279,-150.112233,0.000252,10]
[332121838,1720973448289,-500.0,0.00025204,2]
[332121839,1720973448299,-280.29,0.00025204,2]
[332121840,1720973448308,-500.0,0.00025204,2]
[332121841,1720973448318,-563.39,0.00025204,2]
[332121842,1720973448328,-500.0,0.00025204,2]
[332121843,1720973448338,-243.73,0.00025205,2]
[332121844,1720973448347,-500.0,0.00025205,2]
[332121845,1720973448358,-500.0,0.00025205,2]
[332121846,1720973448369,-541.98,0.00025205,2]
[332121847,1720973448379,-1500.0,0.00025205,2]
[332121848,1720973448388,-511.93,0.00025205,2]
[332121849,1720973448398,-500.0,0.00025205,2]
[332121850,1720973448407,-500.0,0.00025205,2]
[332121851,1720973448417,-505.37007845,0.00025205,2]
[332121852,1720973448426,-721.61,0.00025205,2]
[332121853,1720973448436,-500.0,0.00025205,2]
[332121854,1720973448445,-719.78,0.00025205,2]
[332121855,1720973448455,-500.0,0.00025205,2]
[332121856,1720973448464,-413.23901291,0.00025205,2]
[332121857,1720973448474,-500.0,0.00025205,2]
[332121858,1720973448483,-500.0,0.00025205,2]
[332121859,1720973448493,-500.0,0.00025205,2]
[332121860,1720973448502,-448.22,0.00025205,2]
[332121861,1720973448512,-500.0,0.00025205,2]
[332121862,1720973448522,-500.0,0.00025205,2]
[332121863,1720973448532,-500.0,0.00025205,2]
[332121864,1720973448542,-500.0,0.00025205,2]
[332121865,1720973448551,-500.0,0.00025205,2]
[332121866,1720973448561,-500.0,0.00025205,2]
[332121867,1720973448571,-151.0,0.00025205,7]
[332121868,1720973448580,-500.0,0.00025205,2]
[332121869,1720973448590,-500.0,0.00025205,2]
[332121870,1720973448601,-500.0,0.00025205,2]
[332121871,1720973448610,-500.0,0.00025205,2]
[332121872,1720973448620,-518.26751006,0.00025205,2]
[332121873,1720973448630,-500.0,0.00025205,2]
[332121874,1720973448640,-500.0,0.00025205,2]
[332121875,1720973448649,-500.0,0.00025205,2]
[332121876,1720973448659,-500.0,0.00025205,2]
[332121877,1720973448668,-500.0,0.00025205,2]
[332121878,1720973448678,-500.0,0.00025205,2]
[332121879,1720973448688,-500.0,0.00025205,2]
[332121880,1720973448697,-500.0,0.00025205,2]
[332121881,1720973448707,-151.0,0.00025205,7]
[332121882,1720973448718,-500.0,0.00025205,2]
[332121883,1720973448728,-500.0,0.00025205,2]
[332121884,1720973448741,-500.0,0.00025205,2]
[332121885,1720973448751,-500.0,0.00025205,2]
[332121886,1720973448760,-500.0,0.00025205,2]
[332121887,1720973448770,-151.0,0.00025205,7]
[332121888,1720973448779,-500.0,0.00025205,2]
[332121889,1720973448789,-500.0,0.00025205,2]
[332121890,1720973448798,-612.01,0.00025205,2]
[332121891,1720973448808,-802.97,0.00025205,2]
[332121892,1720973448822,-632.27490537,0.00025205,2]
[332121893,1720973448833,-151.0,0.00025205,7]
[332121894,1720973448843,-151.0,0.00025205,7]
[332121895,1720973448853,-151.0,0.00025205,7]
[332121896,1720973448863,-4002.68,0.00025205,2]
[332121897,1720973448872,-500.0,0.00025205,2]
[332121898,1720973448883,-500.0,0.00025205,2]
[332121899,1720973448893,-556.08,0.00025205,2]
[332121900,1720973448903,-508.41,0.00025205,2]
[332121901,1720973448914,-500.0,0.00025205,2]
[332121902,1720973448923,-500.0,0.00025205,2]
[332121903,1720973448933,-500.0,0.00025205,2]
[332121904,1720973448943,-500.0,0.00025205,2]
[332121905,1720973448953,-500.0,0.00025205,2]
[332121906,1720973448963,-151.0,0.00025205,7]
[332121907,1720973448973,-500.0,0.00025205,2]
[332121908,1720973448982,-500.0,0.00025205,2]
[332121909,1720973448992,-151.0,0.00025205,2]
[332121910,1720973449001,-500.0,0.00025205,2]
[332121911,1720973449011,-500.0,0.00025205,2]
[332121912,1720973449020,-1017.97,0.00025205,2]
[332121913,1720973449030,-500.0,0.00025205,2]
[332121914,1720973449039,-151.0,0.00025205,7]
[332121915,1720973449049,-151.0,0.00025205,7]
[332121916,1720973449058,-505.87,0.00025205,2]
[332121917,1720973449068,-151.0,0.00025205,7]
[332121918,1720973449078,-500.0,0.00025205,2]
[332121919,1720973449088,-500.0,0.00025205,2]
[332121920,1720973449101,-645.20884031,0.00025205,2]
[332121921,1720973449111,-500.0,0.00025205,2]
[332121922,1720973449120,-428.03,0.00025205,2]
[332121923,1720973449131,-500.0,0.00025205,2]
[332121924,1720973449140,-500.0,0.00025205,2]
[332121925,1720973449150,-500.0,0.00025205,2]
[332121926,1720973449159,-500.0,0.00025205,2]
[332121927,1720973449170,-500.0,0.00025205,2]
[332121928,1720973449179,-500.0,0.00025205,2]
[332121929,1720973449189,-500.0,0.00025205,2]
[332121930,1720973449198,-500.0,0.00025205,2]
[332121931,1720973449208,-500.0,0.00025205,2]
[332121932,1720973449217,-500.0,0.00025205,2]
[332121933,1720973449227,-502.29,0.00025205,2]
[332121934,1720973449236,-500.0,0.00025205,2]
[332121935,1720973449246,-500.0,0.00025205,2]
[332121936,1720973449256,-500.0,0.00025205,2]
[332121937,1720973449267,-500.0,0.00025205,2]
[332121938,1720973449277,-7251.35298219,0.00025205,2]
[332121939,1720973449412,-1148.02701781,0.00025205,2]
[332121940,1720973449421,-500.0,0.00025205,2]
[332121941,1720973449430,-500.0,0.00025205,2]
[332121942,1720973449440,-500.0,0.00025205,2]
[332121943,1720973449451,-500.0,0.00025205,2]
[332121944,1720973449460,-500.0,0.00025205,2]
[332121945,1720973449470,-500.0,0.00025205,2]
[332121946,1720973449479,-500.0,0.00025205,2]
[332121947,1720973449489,-500.0,0.00025205,2]
[332121948,1720973449499,-500.0,0.00025205,2]
[332121949,1720973449509,-500.0,0.00025205,2]
[332121950,1720973449519,-118.87876679,0.00025205,2]
[332121951,1720973449532,-381.12123321,0.00025205,2]
[332121952,1720973449541,-500.0,0.00025205,4]
[332121953,1720973449551,-500.0,0.00025205,2]
[332121954,1720973449561,-500.0,0.00025205,2]
[332121955,1720973449571,-255.27094501,0.00025205,2]
[332121956,1720973449587,-500.0,0.00024657,2]
[332121957,1720973449597,-68.43749631,0.00025205,2]
[332121958,1720973449607,-1444.19,0.00025205,2]
[332121959,1720973449618,-500.0,0.00025205,2]
[332121960,1720973449628,-500.0,0.00025205,2]
[332121961,1720973449637,-506.82536929,0.00025205,2]
[332121962,1720973449647,-500.0,0.00025205,2]
[332121963,1720973449658,-500.0,0.00025205,2]
[332121964,1720973449668,-500.0,0.00025205,2]
[332121965,1720973449677,-151.0,0.00025205,7]
[332121966,1720973449687,-151.0,0.00025205,7]
[332121967,1720973449696,-500.0,0.00025205,2]
[332121968,1720973449705,-500.0,0.00025205,2]
[332121969,1720973449715,-151.0,0.00025205,7]
[332121970,1720973449725,-150.112233,0.000253,7]
[332121971,1720973449737,-563.39,0.00025399,2]
[332121972,1720973449747,-500.0,0.00025399,2]
[332121973,1720973449756,-1069.14952932,0.000254,5]
[332121974,1720973449767,-1299.04395946,0.000254,2]
[332121975,1720973449988,-12.95582776,0.00024657,2]
[332121977,1720973482274,143.12548088,0.00018,2]
[332121981,1720973612133,12416.2673454,9.999e-05,2]
[332121984,1720973654110,1062.00993074,0.00014999,2]
[332121985,1720973673024,293.74516952,9.999e-05,2]
[332121986,1720973693110,159.71810457,0.00014999,2]
[332121987,1720973725959,298.57484914,0.00015,2]
[332121988,1720973773520,539.964,0.00014999,2]
[332121989,1720973908966,1988.50300609,0.00014999,2]
[332121990,1720973913426,359.976,0.00014999,2]
[332121992,1720974031942,299.98,0.00014999,2]
[332121993,1720974038448,1500.0,0.00014999,2]
[332121995,1720974182422,156.28958,0.00014999,2]
[332121996,1720974308452,156.28958,0.00014999,2]
[332121997,1720974308483,2959.73060405,0.00014999,2]
[332121998,1720974389887,232.46688684,0.00014999,2]
[332121999,1720974409343,157.39085416,0.00014999,2]
[332122001,1720974427136,-408.534686,0.00016154,2]
[332122002,1720974445169,940.16481678,0.00014999,2]
[332122003,1720974446106,-732.07850449,0.00016154,2]
[332122004,1720974449430,156.28958,0.00014999,2]
[332122005,1720974452103,-208.08631229,0.00016154,2]
[332122006,1720974479705,154.55950541,0.00014999,2]
[332122010,1720974483433,154.76465474,0.00014999,2]
[332122012,1720974514996,165.20623857,0.00014999,2]
[332122014,1720974551183,305.62369676,0.00014999,2]
[332122015,1720974555117,-3126.44875767,0.00016154,2]
[332122016,1720974557155,-158.534686,0.00016154,2]
[332122017,1720974560121,-206.79650404,0.00016154,2]
[332122018,1720974560148,-156.3,0.00016255,2]
[332122019,1720974560174,-291.11124733,0.00016972,2]
[332122020,1720974560202,-143.16540069,0.00018,2]
[332122021,1720974568118,-245.0,0.00018,2]
[332122022,1720974570149,-191.27347695,0.00018,2]
[332122034,1720974633210,-1128.83890846,0.00018,2]
[332122035,1720974633220,-154.55950541,0.0001818,2]
[332122036,1720974633229,-191.30476359,0.00018798,2]
[332122037,1720974633238,-156.28958,0.00018899,2]
[332122038,1720974633248,-162.11072453,0.00018899,2]
[332122039,1720974633257,-335.93298592,0.00018899,2]
[332122040,1720974633266,-154.59033253,0.00018899,2]
[332122041,1720974633276,-173.97039745,0.000189,2]
[332122042,1720974633286,-196.67760823,0.00019039,3]
[332122043,1720974633295,-300.0,0.00019999,2]
[332122044,1720974633305,-300.0,0.00019999,2]
[332122045,1720974633315,-293.73911192,0.0002,2]
[332122046,1720974633324,-917.42765276,0.0002,2]
[332122047,1720974633337,-361.33247532,0.0002,2]
[332122074,1720974638622,-156.28958,0.00018899,2]
[332122075,1720974638631,-4967.67988005,0.0002,2]
[332122076,1720974638641,-164.7999,0.00020456,2]
[332122077,1720974638650,-1554.60311025,0.00020819,2]
[332122080,1720974638678,-1445.39688975,0.00020819,2]
[332122082,1720974638687,-250.0,0.00020841,2]
[332122084,1720974638696,-163.145917,0.0002094,2]
[332122086,1720974638706,-388.3102561,0.00021032,2]
[332122087,1720974638714,-285.0,0.00021095,2]
[332122088,1720974638723,-749.491891,0.00021096,2]
[332122089,1720974638733,-325.547338,0.00021096,2]
[332122090,1720974638741,-291.358274,0.00021127,2]
[332122091,1720974638753,-163.145917,0.00021304,2]
[332122092,1720974638761,-163.145917,0.00021668,2]
[332122094,1720974638771,-163.145917,0.00022031,2]
[332122095,1720974638781,-173.97039745,0.000239,2]
[332122097,1720974638791,-150.112233,0.00024,4]
[332122100,1720974638801,-893.2074911,0.00024,2]
[332122102,1720974638811,-500.0,0.00024498,2]
[332122103,1720974638820,-500.0,0.00024498,2]
[332122104,1720974638829,-155.05577127,0.00024498,2]
[332122105,1720974638838,-500.0,0.00024498,2]
[332122106,1720974638847,-500.0,0.00024498,2]
[332122107,1720974638857,-500.0,0.00024498,2]
[332122108,1720974638866,-500.0,0.00024498,2]
[332122109,1720974638875,-563.51276084,0.00024498,2]
[332122110,1720974638885,-293.31602616,0.00024498,2]
[332122111,1720974638894,-630.28899067,0.00024498,2]
[332122112,1720974638904,-500.0,0.00024498,2]
[332122113,1720974638913,-500.0,0.00024498,2]
[332122114,1720974638923,-153.21736751,0.000245,2]
[332122115,1720974638932,-150.112233,0.000245,3]
[332122116,1720974638941,-2405.05487465,0.00024557,3]
[332122117,1720974638950,-831.28003883,0.00024557,2]
[332122118,1720974638960,-150.112233,0.000246,2]
[332122120,1720974638970,-499.83762065,0.00024647,3]
[332122121,1720974638979,-604.35,0.00024647,3]
[332122124,1720974638989,-500.0,0.00024656,2]
[332122126,1720974638999,-249.08509485,0.00024656,2]
[332122128,1720974639008,-221.53404014,0.00024656,2]
[332122130,1720974639017,-500.0,0.00024657,2]
[332122132,1720974639027,-500.0,0.00024657,2]
[332122134,1720974639038,-500.0,0.00024657,2]
[332122136,1720974639049,-500.0,0.00024657,2]
[332122138,1720974639060,-500.0,0.00024657,2]
[332122140,1720974639070,-169.12075887,0.00024657,2]
[332122142,1720974639079,-500.0,0.00024657,2]
[332122144,1720974639088,-500.0,0.00024657,2]
[332122146,1720974639098,-500.0,0.00024657,2]
[332122148,1720974639107,-500.0,0.00024657,2]
[332122150,1720974639116,-160.90982571,0.00024657,2]
[332122152,1720974639130,-500.0,0.00024657,2]
[332122154,1720974639140,-500.0,0.00024657,2]
[332122156,1720974639150,-1500.0,0.00024657,2]
[332122158,1720974639159,-561.52211074,0.00024657,2]
[332122160,1720974639168,-500.0,0.00024657,2]
[332122162,1720974639177,-500.0,0.00024657,2]
[332122164,1720974639186,-500.0,0.00024657,2]
[332122166,1720974639195,-500.0,0.00024657,2]
[332122168,1720974639206,-500.0,0.00024657,2]
[332122170,1720974639216,-500.0,0.00024657,2]
[332122172,1720974639225,-500.0,0.00024657,2]
[332122174,1720974639234,-500.0,0.00024657,2]
[332122176,1720974639243,-500.0,0.00024657,2]
[332122178,1720974639252,-500.0,0.00024657,2]
[332122180,1720974639262,-500.0,0.00024657,2]
[332122182,1720974639272,-500.0,0.00024657,2]
[332122185,1720974639284,-500.0,0.00024657,2]
[332122187,1720974639295,-500.0,0.00024657,2]
[332122189,1720974639306,-500.0,0.00024657,2]
[332122191,1720974639318,-500.0,0.00024657,2]
[332122193,1720974639328,-500.0,0.00024657,2]
[332122195,1720974639338,-500.0,0.00024657,2]
[332122197,1720974639347,-500.0,0.00024657,2]